Workbook

Sheet Beregning
A1: Oversigt over kontraktforløb i Sønderjysk Indkøbsforening:
A3: Indtastninger: | D3: Omkostninger:
A4: Købssum: | B4: 150000 | D4: Provision: | E4: =IF((G5<500),500,(IF((G5>1500),1500,G5))) -> 1500 | G4: 2
A5: Afdragstid år: | B5: 5 | D5: Udbetaling: | E5: =IF((G6<1),0,G6) -> 0 | G5: =B4*G4/100 -> 3000
A6: Rentesats: | B6: 1 | D6: Moms: | E6: =(B4*0.25)+(E4*0.25)-(B9*0.25) -> 31625 | G6: =(B4*(B8/100))-B9 -> -2500
A7: Terminer pr. år: | B7: 4
A8: Udbetaling %: | B8: 15
A9: Værdi af maskine givet i bytte | B9: 25000 | D9: Betaling ved underskrift: | E9: =SUM(E4:E6) -> 33125
A13: Afdragsoversigt:
B14: Rente | C14: Afdrag | D14: Ydelse | E14: Restgæld
A15: Lån: | E15: =B4-E5-B9 -> 125000 | G15: 1
A16: 1. termin | B16: =IF((E15<>""),(E15*$B$6/100/$B$7),"") -> 312.5 | C16: =IF((E15>0),($E$15/(B$5*B$7)),0) -> 6250 | D16: =IF((E15>0),(C16+B16),"") -> 6562.5 | E16: =IF((E15-C16)>0,(E15-C16),0) -> 118750 | G16: 2
A17: 2. termin | B17: 296.875 | C17: 6250 | D17: =IF((E16>0),(C17+B17),"") -> 6546.875 | E17: =IF((E16-C17)>0,(E16-C17),0) -> 112500 | G17: 3
A18: 3. termin | B18: 281.25 | C18: 6250 | D18: 6531.25 | E18: 106250 | G18: 4
A19: 4. termin | B19: 265.625 | C19: 6250 | D19: 6515.625 | E19: 100000 | G19: 5
A20: 5. termin | B20: 250 | C20: 6250 | D20: 6500 | E20: 93750 | G20: 6
A21: 6. termin | B21: 234.375 | C21: 6250 | D21: 6484.375 | E21: 87500
A22: 7. termin | B22: 218.75 | C22: 6250 | D22: 6468.75 | E22: 81250
A23: 8. termin | B23: 203.125 | C23: 6250 | D23: 6453.125 | E23: 75000
A24: 9. termin | B24: 187.5 | C24: 6250 | D24: 6437.5 | E24: 68750 | G24: 1
A25: 10. termin | B25: 171.875 | C25: 6250 | D25: 6421.875 | E25: 62500
A26: 11. termin | B26: 156.25 | C26: 6250 | D26: 6406.25 | E26: 56250
A27: 12. termin | B27: 140.625 | C27: 6250 | D27: 6390.625 | E27: 50000 | G27: 4
A28: 13. termin | B28: 125 | C28: 6250 | D28: 6375 | E28: 43750
A29: 14. termin | B29: 109.375 | C29: 6250 | D29: 6359.375 | E29: 37500
A30: 15. termin | B30: 93.75 | C30: 6250 | D30: 6343.75 | E30: 31250 | G30: 15
A31: 16. termin | B31: 78.125 | C31: 6250 | D31: 6328.125 | E31: 25000 | G31: 20
A32: 17. termin | B32: 62.5 | C32: 6250 | D32: 6312.5 | E32: 18750
A33: 18. termin | B33: 46.875 | C33: 6250 | D33: 6296.875 | E33: 12500
A34: 19. termin | B34: 31.25 | C34: 6250 | D34: 6281.25 | E34: 6250
A35: 20. termin | B35: 15.625 | C35: 6250 | D35: 6265.625 | E35: 0
A36: 21. termin | B36: 0 | C36: 0 | E36: 0
A37: 22. termin | B37: 0 | C37: 0 | E37: 0
A38: 23. termin | B38: 0 | C38: 0 | E38: 0
A39: 24. termin | B39: 0 | C39: 0 | D39: =IF((E38>0),(C39+B39),"") ->  | E39: =IF((E38-C39)>0,(E38-C39),0) -> 0
A41: Samlet betaling incl. provision: | D41: =SUM(D16:D40)+E4 -> 129781.25
A42: Samlede omkostninger incl. provision: | D42: =D41-E15 -> 4781.25
